bitfinex-derivatives/quotes_SOLF0:USTF0_20250716
["timestamp","ask_amount","ask_price","bid_price","bid_amount"]
[1752696067261,3.25,174.37,174.36,6.13237053]
[1752696067961,0.03784381,174.41,174.36,6.90237053]
[1752696068164,5.76804381,174.41,174.38,6.13237053]
[1752696068457,0.03784381,174.41,174.39,3.32]
[1752696068657,0.03784381,174.41,174.38,9.45237053]
[1752696068964,0.03784381,174.41,174.4,9.45237053]
[1752696069571,20.03784381,174.41,174.4,9.45237053]
[1752696070374,23.28784381,174.41,174.4,9.45237053]
[1752696070872,23.28784381,174.41,174.4,6.13237053]
[1752696071267,23.28784381,174.41,174.38,9.0509]
[1752696071468,23.28784381,174.41,174.4,6.13237053]
[1752696071973,20.03784381,174.41,174.4,6.13237053]
[1752696072271,20.03784381,174.41,174.38,6.13237053]
[1752696072472,3.25,174.4,174.38,6.13237053]
[1752696072662,3.25,174.4,174.38,9.45237053]
[1752696072862,3.25,174.39,174.38,9.45237053]
[1752696073263,3.25,174.39,174.38,6.13237053]
[1752696073761,3.25,174.39,174.36,199.2316]
[1752696073964,3.25,174.4,174.36,205.36397053]
[1752696074375,3.25,174.4,174.37,6.13237053]
[1752696075171,3.25,174.39,174.37,11.86367053]
[1752696075366,3.25,174.39,174.37,15.18367053]
[1752696075873,3.25,174.38,174.37,11.86367053]
[1752696076173,3.25,174.38,174.37,6.13237053]
[1752696076770,3.16,174.4,174.38,3.33]
[1752696076965,3.16,174.4,174.35,3.33]
[1752696077161,3.16,174.4,174.37,6.13237053]
[1752696077370,3.16,174.4,174.31,119.20585984]
[1752696077570,3.16,174.4,174.33,6.13237053]
[1752696077767,20.0,174.41,174.33,6.13237053]
[1752696077972,0.04055297,174.38,174.34,6.13237053]
[1752696078172,3.16,174.37,174.34,6.13237053]
[1752696078375,3.16,174.36,174.34,9.46237053]
[1752696078565,0.04055297,174.38,174.35,3.33]
[1752696078766,3.16,174.36,174.35,6.13237053]
[1752696079075,3.16,174.37,174.32,3.33]
[1752696079271,3.16,174.37,174.34,6.13237053]
[1752696079580,3.16,174.35,174.34,6.13237053]
[1752696080971,3.16,174.34,174.32,9.0628]
[1752696081273,3.16,174.34,174.33,6.13237053]
[1752696081678,3.16,174.34,174.31,115.87585984]
[1752696081877,3.16,174.34,174.28,6.13237053]
[1752696082077,3.16,174.34,174.25,6.13237053]
[1752696082583,3.16,174.32,174.23,3.33]
[1752696082774,3.16,174.32,174.23,9.46237053]
[1752696083169,3.16,174.32,174.25,6.13237053]
[1752696083382,3.16,174.28,174.25,9.46237053]
[1752696083570,3.16,174.27,174.26,3.33]
[1752696083770,3.16,174.28,174.27,9.46237053]
[1752696084188,6.13237053,174.36,174.25,6.13237053]
[1752696084189,3.16,174.26,174.25,6.13237053]
[1752696084570,3.16,174.25,174.23,3.33]
[1752696084782,3.16,174.25,174.24,6.13237053]
[1752696085176,3.16,174.25,174.23,3.33]
[1752696085381,3.16,174.28,174.24,6.13237053]
[1752696085568,5.7348,174.27,174.24,6.13237053]
[1752696085771,3.16,174.26,174.24,9.46237053]
[1752696085983,3.16,174.25,174.24,6.13237053]
[1752696086586,3.16,174.27,174.24,9.46237053]
[1752696086888,3.16,174.27,174.24,6.13237053]
[1752696087276,5.7355,174.25,174.22,6.13237053]
[1752696087585,3.16,174.24,174.22,6.13237053]
[1752696087781,3.16,174.23,174.22,6.13237053]
[1752696087981,5.7359,174.24,174.21,3.33]
[1752696088181,3.16,174.23,174.2,6.13237053]
[1752696088580,8.896,174.23,174.2,6.13237053]
[1752696088785,3.16,174.21,174.2,6.13237053]
[1752696089373,3.16,174.21,174.2,11.86927053]
[1752696089580,3.16,174.23,174.21,3.33]
[1752696089780,3.16,174.23,174.22,6.13237053]
[1752696090285,3.16,174.26,174.23,3.33]
[1752696090488,11.4616,174.39,174.25,6.13237053]
[1752696090489,3.16,174.33,174.25,6.13237053]
[1752696090685,3.16,174.3,174.29,6.13237053]
[1752696090986,12.74504744,174.36,174.29,6.13237053]
[1752696091374,5.7337,174.3,174.29,6.13237053]
[1752696091573,5.7337,174.3,174.28,6.13237053]
[1752696091783,3.16,174.29,174.28,6.13237053]
[1752696092090,3.16,174.28,174.27,0.04059328]
[1752696092291,3.16,174.28,174.27,6.17296381]
[1752696092586,3.16,174.28,174.27,11.90756381]
[1752696092987,3.16,174.28,174.27,3.37059328]
[1752696093287,3.16,174.28,174.27,9.50296381]
[1752696093789,3.16,174.28,174.27,6.17296381]
[1752696094187,3.16,174.28,174.27,0.04059328]
[1752696094381,8.8943,174.28,174.27,0.04059328]
[1752696094886,3.16,174.23,174.21,6.13237053]
[1752696095283,3.16,174.22,174.21,6.13237053]
[1752696095682,3.16,174.22,174.2,9.0666]
[1752696095898,3.16,174.22,174.2,15.19897053]
[1752696096094,3.16,174.22,174.2,9.46237053]
[1752696097285,3.16,174.22,174.21,6.13237053]
[1752696098089,3.16,174.22,174.21,3.33]
[1752696098391,3.16,174.22,174.21,6.13237053]
[1752696099092,5.77973163,174.23,174.2,6.13237053]
[1752696099093,3.16,174.21,174.2,6.13237053]
[1752696099693,3.16,174.2,174.18,6.13237053]
[1752696099995,3.16,174.19,174.18,6.13237053]
[1752696100487,3.16,174.19,174.18,3.33]
[1752696100694,3.16,174.19,174.18,6.13237053]
[1752696100994,3.16,174.19,174.18,9.46237053]
[1752696101186,3.16,174.22,174.19,3.33]
[1752696101494,3.16,174.22,174.2,9.46237053]
[1752696102391,3.16,174.21,174.2,9.46237053]
[1752696102592,3.16,174.21,174.2,6.13237053]
[1752696103391,3.16,174.21,174.19,3.33]
[1752696103694,3.16,174.2,174.19,6.13237053]
[1752696103896,3.16,174.2,174.19,9.46237053]
[1752696104891,0.04373163,174.23,174.2,3.33]
[1752696105097,0.04373163,174.23,174.22,6.13237053]
[1752696105286,3.16,174.25,174.22,9.46237053]
[1752696105486,3.16,174.3,174.24,6.13237053]
[1752696105996,5.7352,174.26,174.24,6.13237053]
[1752696106295,3.16,174.25,174.24,6.13237053]
[1752696106895,3.37,174.27,174.24,9.21237053]
[1752696107196,3.37,174.27,174.26,6.13237053]
[1752696107496,3.37,174.27,174.24,6.13237053]
[1752696108000,3.41237365,174.27,174.24,6.13237053]
[1752696108493,3.37,174.25,174.24,6.13237053]
[1752696109298,9.14707365,174.27,174.24,11.86797053]
[1752696109591,9.14707365,174.27,174.26,6.13237053]
[1752696110098,3.37,174.25,174.21,3.08]
[1752696110289,3.37,174.25,174.23,6.13237053]
[1752696110686,5.7358,174.24,174.23,6.13237053]
[1752696110888,9.1058,174.24,174.23,6.13237053]
[1752696111090,3.37,174.23,174.21,3.08]
[1752696111295,5.7355,174.25,174.22,4.14620809]
[1752696111494,5.7355,174.25,174.24,4.14620809]
[1752696111706,9.1055,174.25,174.24,4.14620809]
[1752696111904,3.37,174.21,174.2,189.92]
[1752696112098,3.37,174.21,174.2,4.14620809]
[1752696112300,3.37,174.2,174.18,8.8174]
[1752696112502,3.37,174.19,174.18,3.08]
[1752696112798,3.37,174.19,174.18,7.22620809]
[1752696112996,5.77402616,174.22,174.18,12.96380809]
[1752696113295,3.37,174.21,174.18,3.08]
[1752696113488,3.37,174.2,174.18,7.22620809]
[1752696113691,3.37,174.19,174.18,3.08]
[1752696113901,3.37,174.19,174.18,7.22620809]
[1752696114608,3.37,174.19,174.18,3.08]
[1752696114909,3.37,174.19,174.18,7.22620809]
[1752696115099,3.37,174.19,174.18,4.14620809]
[1752696116092,3.37,174.19,174.18,7.22620809]
[1752696116306,3.37,174.21,174.2,3.08]
[1752696116600,0.03772616,174.22,174.2,7.22620809]
[1752696116800,3.40772616,174.22,174.2,7.22620809]
[1752696117001,0.03772616,174.22,174.21,3.08]
[1752696117502,3.40772616,174.22,174.21,4.14620809]
[1752696118101,3.40772616,174.22,174.21,7.22620809]
[1752696118505,0.03772616,174.22,174.21,7.22620809]
[1752696119098,3.40772616,174.22,174.21,7.22620809]
[1752696119400,3.40772616,174.22,174.21,4.14620809]
[1752696119704,3.40772616,174.22,174.15,3.08]
[1752696120006,3.40772616,174.22,174.16,4.14620809]
[1752696120406,3.37,174.22,174.16,4.14620809]
[1752696120595,5.7374,174.19,174.16,4.14620809]
[1752696120800,3.37,174.17,174.16,4.14620809]
[1752696121897,0.03615616,174.21,174.15,5.7383]
[1752696122203,3.37,174.2,174.15,7.22620809]
[1752696122417,5.7375,174.19,174.15,7.22620809]
[1752696122599,3.37,174.18,174.15,7.22620809]
[1752696122798,3.37,174.18,174.13,191.66]
[1752696123111,5.738,174.17,174.15,4.14620809]
[1752696123307,3.37,174.16,174.15,4.14620809]
[1752696123709,5.77430131,174.17,174.15,4.14620809]
[1752696123904,0.03630131,174.17,174.16,3.08]
[1752696124502,0.03630131,174.17,174.16,8.8182]
[1752696124707,3.37,174.19,174.16,3.08]
[1752696124907,3.37,174.19,174.18,7.22620809]
[1752696125705,3.37,174.21,174.18,4.14620809]
[1752696125898,3.37,174.23,174.2,4.14620809]
[1752696126204,3.37,174.23,174.22,4.14620809]
[1752696126396,3.37,174.25,174.17,3.08]
[1752696126594,3.37,174.25,174.21,4.14620809]
[1752696126904,3.37,174.21,174.19,3.08]
[1752696127102,3.37,174.25,174.19,4.14620809]
[1752696127303,9.1075,174.18,174.17,4.14620809]
[1752696127613,3.37,174.23,174.15,4.14620809]
[1752696128713,3.37,174.22,174.15,4.14620809]
[1752696129015,3.37,174.22,174.14,198.42877979]
[1752696129308,5.738,174.17,174.14,198.42877979]
[1752696129509,3.37,174.15,174.14,198.42877979]
[1752696129710,12.74504744,174.23,174.13,6.14877979]
[1752696129918,3.37,174.14,174.13,9.22877979]
[1752696131212,3.37,174.14,174.13,3.08]
[1752696132412,3.37,174.16,174.13,3.08]
[1752696132712,3.37,174.17,174.16,3.08]
[1752696132912,3.37,174.21,174.13,9.22877979]
[1752696133100,3.37,174.15,174.14,3.08]
[1752696133507,9.1079,174.17,174.14,3.08]
[1752696133708,3.37,174.16,174.15,3.08]
[1752696133908,3.37,174.16,174.15,9.22877979]
[1752696134312,9.1082,174.16,174.15,3.08]
[1752696134513,9.1082,174.16,174.15,6.14877979]
[1752696134714,3.37,174.15,174.14,3.08]
[1752696135017,3.37,174.14,174.13,9.26747662]
[1752696135512,12.74504744,174.21,174.13,11.92657662]
[1752696135713,3.37,174.2,174.16,3.08]
[1752696136317,3.37,174.2,174.15,6.14877979]
[1752696136518,3.37,174.2,174.16,0.04288071]
[1752696136913,5.7378,174.18,174.16,0.04288071]
[1752696137113,3.15,174.17,174.16,0.04288071]
[1752696137311,3.15,174.22,174.16,3.36288071]
[1752696137523,5.7366,174.21,174.19,9.46877979]
[1752696137709,3.15,174.2,174.19,9.46877979]
[1752696138120,5.7363,174.22,174.19,15.20597979]
[1752696138323,3.15,174.24,174.22,3.32]
[1752696138511,3.15,174.24,174.23,9.46877979]
[1752696138822,8.8858,174.24,174.23,9.46877979]
[1752696139220,3.15,174.24,174.23,9.46877979]
[1752696139414,3.15,174.24,174.23,6.14877979]
[1752696139615,15.89504744,174.27,174.22,6.14877979]
[1752696139827,3.15,174.26,174.21,3.36181101]
[1752696140025,3.15,174.26,174.22,6.14877979]
[1752696140819,3.15,174.23,174.22,6.14877979]
[1752696141024,3.15,174.24,174.23,3.32]
[1752696141218,3.15,174.26,174.22,6.14877979]
[1752696141412,3.15,174.26,174.25,9.46877979]
[1752696141816,5.7347,174.27,174.24,9.46877979]
[1752696142026,3.15,174.25,174.24,9.46877979]
[1752696142221,3.15,174.27,174.24,9.46877979]
[1752696142416,3.15,174.27,174.26,3.32]
[1752696142618,3.15,174.27,174.26,6.14877979]
[1752696142813,3.15,174.26,174.24,3.35783468]
[1752696143015,3.15,174.25,174.24,9.50661447]
[1752696143320,3.15,174.26,174.25,3.32]
[1752696144123,5.7349,174.26,174.24,6.18661447]
[1752696144325,3.15,174.25,174.24,9.50661447]
[1752696144528,8.8852,174.25,174.24,6.18661447]
[1752696146417,5.7359,174.23,174.22,6.14877979]
[1752696146618,3.15,174.23,174.2,6.14877979]
[1752696147024,5.7369,174.21,174.2,6.14877979]
[1752696147226,8.8869,174.21,174.2,6.14877979]
[1752696147733,8.8872,174.19,174.18,6.14877979]
[1752696148231,0.03649704,174.22,174.16,193.88877979]
[1752696148232,5.7379,174.17,174.16,193.88877979]
[1752696148430,8.8879,174.17,174.16,6.14877979]
[1752696148729,3.15,174.17,174.14,9.46877979]
[1752696149125,12.87108467,174.2,174.17,3.32]
[1752696149126,0.03817409,174.2,174.17,3.32]
[1752696149331,3.15,174.17,174.16,9.46877979]
[1752696150132,8.8879,174.17,174.16,9.46877979]
[1752696150530,8.8879,174.17,174.16,6.14877979]
[1752696151430,5.7383,174.16,174.14,9.46877979]
[1752696151633,3.15,174.15,174.12,9.46877979]
[1752696151931,3.15,174.17,174.12,6.14877979]
[1752696152135,3.15,174.13,174.12,6.14877979]
[1752696152335,3.15,174.13,174.11,374.37516192]
[1752696152538,3.15,174.13,174.11,377.69516192]
[1752696153020,3.15,174.13,174.11,383.43496192]
[1752696153224,3.15,174.13,174.12,3.32]
[1752696154029,0.03758365,174.14,174.12,3.32]
[1752696154238,3.18758365,174.14,174.13,6.14877979]
[1752696154433,8.92648365,174.14,174.12,3.32]
[1752696154731,3.15,174.13,174.12,3.32]
[1752696154935,3.15,174.13,174.11,374.37516192]
[1752696155336,3.15,174.12,174.07,3.32]
[1752696155540,3.15,174.12,174.08,9.46877979]
[1752696155738,0.03758365,174.14,174.09,3.32]
[1752696155937,5.7402,174.1,174.07,6.14877979]
[1752696156135,8.8902,174.1,174.08,3.32]
[1752696156538,3.15,174.1,174.09,9.46877979]
[1752696158137,0.03718612,174.13,174.1,3.32]
[1752696158338,0.03718612,174.13,174.12,3.32]
[1752696159445,3.15,174.15,174.12,3.32]
[1752696159637,3.15,174.17,174.16,3.32]
[1752696159839,3.15,174.17,174.16,9.46877979]
[1752696160739,3.15,174.27,174.18,3.32]
[1752696160941,3.15,174.27,174.19,6.14877979]
[1752696161236,3.15,174.2,174.19,9.46877979]
[1752696161441,3.15,174.27,174.21,0.03653111]
[1752696161950,8.8864,174.22,174.21,0.03653111]
[1752696162544,3.15,174.22,174.21,0.03653111]
[1752696163440,3.15,174.22,174.21,6.1853109]
[1752696163948,3.15,174.23,174.21,9.5053109]
[1752696164351,3.15,174.22,174.21,9.5053109]
[1752696164944,5.739,174.3,174.21,6.1853109]
[1752696164945,3.15,174.26,174.21,6.1853109]
[1752696165253,31.4602,174.41,174.25,9.46877979]
[1752696165254,12.83291058,174.37,174.25,9.46877979]
[1752696165549,12.83291058,174.37,174.29,6.14877979]
[1752696165950,5.7328,174.33,174.29,6.14877979]
[1752696166247,12.83291058,174.38,174.31,0.04309053]
[1752696166555,5.7324,174.34,174.31,0.04309053]
[1752696167155,9.0927,174.33,174.31,0.04309053]
[1752696167341,5.7327,174.33,174.31,0.04309053]
[1752696167655,3.36,174.32,174.31,0.04309053]
[1752696169057,9.093,174.32,174.31,0.04309053]
[1752696169356,3.36,174.32,174.27,6.14877979]
[1752696169756,3.36,174.28,174.24,6.14877979]
[1752696170355,12.83291058,174.36,174.26,6.14877979]
[1752696170556,3.39952193,174.28,174.26,9.40877979]
[1752696170745,3.36,174.28,174.26,9.40877979]
[1752696170948,3.36,174.27,174.26,9.40877979]
[1752696171248,3.36,174.27,174.26,15.14367979]
[1752696171453,3.36,174.27,174.26,9.40877979]
[1752696171854,0.04256346,174.29,174.25,6.14877979]
[1752696172054,3.36,174.26,174.25,9.40877979]
[1752696172262,5.7338,174.3,174.25,9.40877979]
[1752696172451,3.36,174.26,174.25,9.40877979]
[1752696172855,3.36,174.26,174.21,3.26]
[1752696173162,3.36,174.26,174.24,6.14877979]
[1752696173543,3.36,174.26,174.22,6.14877979]
[1752696173958,5.7355,174.25,174.21,3.26]
[1752696174162,3.36,174.24,174.21,3.26]
[1752696174664,3.36,174.24,174.2,172.368981]
[1752696174864,3.36,174.23,174.2,175.628981]
[1752696175163,3.36,174.22,174.2,175.628981]
[1752696175363,3.36,174.21,174.2,172.368981]
[1752696175847,3.36,174.21,174.2,166.22020121]
[1752696176764,3.40324888,174.23,174.21,3.26]
[1752696177058,0.04324888,174.23,174.2,172.368981]
[1752696177260,3.36,174.21,174.2,175.628981]
[1752696177451,3.36,174.21,174.2,181.365881]
[1752696178059,0.00015835,174.23,174.22,8.9963]
[1752696178260,3.36,174.26,174.23,3.26]
[1752696178457,3.36,174.25,174.24,6.14877979]
[1752696180064,5.7355,174.25,174.23,0.04157878]
[1752696180359,3.36,174.24,174.23,0.04157878]
[1752696180869,3.36,174.24,174.23,3.30157878]
[1752696181055,5.7342,174.29,174.23,3.30157878]
[1752696181252,3.36,174.28,174.27,6.14877979]
[1752696181457,3.36,174.34,174.27,9.40877979]
[1752696181659,3.36,174.34,174.29,6.14877979]
[1752696181964,3.36,174.34,174.29,9.40877979]
[1752696182160,3.36,174.34,174.29,15.14247979]
[1752696182360,3.36,174.34,174.3,0.03987068]
[1752696182568,3.36,174.32,174.3,3.29987068]
[1752696182771,3.36,174.32,174.3,9.03327068]
[1752696182975,3.36,174.31,174.3,3.29987068]
[1752696183278,3.36,174.31,174.3,0.03987068]
[1752696187583,9.0933,174.31,174.3,0.03987068]
[1752696190270,5.7349,174.27,174.25,6.14877979]
[1752696190577,3.36,174.26,174.25,6.14877979]
[1752696191682,3.36,174.26,174.25,9.40877979]
[1752696192477,3.36,174.26,174.25,6.14877979]
[1752696192678,5.77245352,174.27,174.2,166.22020121]
[1752696192873,3.36,174.25,174.24,9.40877979]
[1752696193977,3.36,174.25,174.24,15.14437979]
[1752696194179,5.77235352,174.27,174.24,15.14437979]
[1752696194376,3.36,174.26,174.24,15.14437979]
[1752696194580,3.36,174.25,174.24,15.14437979]
[1752696194893,3.36,174.25,174.24,9.40877979]
[1752696195384,3.36,174.25,174.24,6.14877979]
[1752696195578,9.0957,174.25,174.24,6.14877979]
[1752696195885,3.36,174.25,174.22,9.40877979]
[1752696196190,3.36,174.23,174.22,9.40877979]
[1752696196782,3.2,174.22,174.21,9.0268]
[1752696197078,3.2,174.22,174.21,4.14685845]
[1752696197471,0.03901289,174.23,174.19,3.29]
[1752696197674,0.03901289,174.23,174.2,4.14685845]
[1752696197885,5.737,174.22,174.2,4.14685845]
[1752696198078,3.2,174.21,174.2,4.14685845]
[1752696198485,0.03901289,174.23,174.18,9.028]
[1752696198486,3.2,174.19,174.18,9.028]
[1752696198688,3.2,174.19,174.18,13.17485845]
[1752696199086,3.2,174.19,174.18,3.29]
[1752696199387,3.2,174.18,174.16,3.29]
[1752696199591,3.2,174.18,174.17,3.29]
[1752696200283,0.0423023,174.19,174.17,6.14648329]
[1752696200489,3.2423023,174.19,174.18,3.29]
[1752696200791,3.2,174.19,174.18,3.29]
[1752696201498,5.7373,174.19,174.16,15.17458329]
[1752696201792,3.2,174.18,174.16,15.17458329]
[1752696201977,3.2,174.17,174.16,6.14648329]
[1752696202180,3.2,174.17,174.15,190.15]
[1752696203189,3.2,174.17,174.15,192.5986]
[1752696203389,3.2,174.17,174.16,3.29]
[1752696206082,8.9379,174.17,174.14,15.17518329]
[1752696206296,3.2,174.16,174.15,3.29]
[1752696207098,3.2,174.15,174.12,3.29]
[1752696207287,3.2,174.15,174.11,185.54]
[1752696207288,3.2,174.15,174.14,9.43648329]
[1752696208092,0.03724,174.16,174.14,9.43648329]
[1752696208297,3.23724,174.16,174.15,3.29]
[1752696209295,3.2,174.15,174.14,9.43648329]
[1752696209798,0.03724,174.16,174.14,9.43648329]
[1752696209799,0.03724,174.16,174.15,3.29]
[1752696210098,3.2,174.21,174.18,3.29]
[1752696210396,3.2,174.2,174.19,9.43648329]
[1752696211492,3.2,174.2,174.19,6.14648329]
[1752696211893,3.2,174.2,174.19,9.43648329]
[1752696212198,5.7364,174.22,174.19,6.14648329]
[1752696212401,5.7364,174.22,174.18,0.0382038]
[1752696212402,3.2,174.28,174.21,9.43648329]
[1752696212584,3.2,174.28,174.23,9.43648329]
[1752696212786,5.7351,174.26,174.24,3.29]
[1752696212984,3.2,174.25,174.24,3.29]
[1752696213192,3.2,174.25,174.24,3.32901778]
[1752696213387,5.7351,174.26,174.24,3.32901778]
[1752696213600,5.7351,174.26,174.25,6.14648329]
[1752696214002,8.9351,174.26,174.25,6.14648329]
[1752696214298,8.9352,174.25,174.24,0.03901778]
[1752696214498,8.9352,174.25,174.24,6.18550107]
[1752696215598,3.2,174.25,174.24,0.03901778]
[1752696217203,8.9352,174.25,174.24,0.03901778]
[1752696218291,3.2,174.25,174.24,0.03901778]
[1752696218495,3.2,174.27,174.24,3.32901778]
[1752696218702,3.2,174.27,174.26,9.43648329]
[1752696219304,3.2,174.29,174.26,9.43648329]
[1752696219500,3.2,174.28,174.27,3.29]
[1752696219809,3.2,174.33,174.27,3.29]
[1752696220107,3.2,174.33,174.26,6.14648329]
[1752696220108,3.2,174.33,174.31,6.14648329]
[1752696220494,5.7332,174.32,174.31,6.14648329]
[1752696220697,3.2,174.33,174.2,429.82648329]
[1752696220698,3.2,174.35,174.27,3.29]
[1752696220898,3.2,174.35,174.3,0.0374839]
[1752696221611,5.7333,174.31,174.3,0.0374839]
[1752696221906,8.9333,174.31,174.3,0.0374839]
[1752696222608,4.1438155,174.38,174.34,5.7321]
[1752696222609,3.2,174.36,174.34,5.7321]
[1752696222796,3.2,174.38,174.36,3.29]
[1752696222996,3.2,174.38,174.37,4.1438155]
[1752696223200,8.9312,174.38,174.37,4.1438155]
[1752696225005,8.9312,174.38,174.37,6.13237943]
[1752696225213,3.2,174.38,174.37,9.42237943]
[1752696225510,3.2,174.39,174.38,3.29]
[1752696225907,3.2,174.39,174.37,6.13237943]
[1752696225908,3.2,174.4,174.37,6.13237943]
[1752696226105,3.2,174.4,174.39,9.42237943]
[1752696226414,8.9305,174.4,174.39,6.13237943]
[1752696227801,3.2,174.39,174.36,6.13237943]
[1752696228200,3.2,174.39,174.36,9.51237943]
[1752696228201,5.7313,174.38,174.36,9.51237943]
[1752696228407,20.0,174.41,174.36,9.51237943]
[1752696228408,3.2,174.4,174.37,3.38]
[1752696228607,3.2,174.4,174.39,6.13237943]
[1752696229209,8.9305,174.4,174.39,6.13237943]
[1752696229604,8.9305,174.4,174.39,9.51237943]
[1752696229804,8.9305,174.4,174.39,6.13237943]
[1752696230006,8.9309,174.39,174.38,6.13237943]
[1752696230414,8.9309,174.39,174.37,3.38]
[1752696230619,8.9309,174.39,174.38,6.13237943]
[1752696231818,8.9309,174.39,174.38,9.51237943]
[1752696232219,8.9309,174.39,174.38,6.13237943]
[1752696233917,5.7317,174.37,174.35,6.17003807]
[1752696234216,20.0,174.41,174.35,9.55003807]
[1752696234418,3.2,174.37,174.36,3.38]
[1752696235107,3.2,174.4,174.35,6.17003807]
[1752696235308,3.2,174.39,174.38,9.51237943]
[1752696236508,3.2,174.39,174.35,0.03765864]
[1752696236722,3.2,174.39,174.36,6.13237943]
[1752696237110,3.2,174.37,174.36,9.51237943]
[1752696237421,5.7312,174.38,174.37,3.38]
[1752696237422,3.2,174.38,174.37,3.38]
[1752696237610,8.931,174.38,174.37,3.38]
[1752696237914,3.2,174.37,174.36,3.38]
[1752696239719,8.9313,174.37,174.36,3.38]
[1752696240022,3.2,174.37,174.36,3.38]
[1752696240726,20.0,174.41,174.36,3.38]
[1752696240727,3.2,174.39,174.36,3.38]
[1752696241023,8.9307,174.39,174.37,9.51237943]
[1752696241522,5.7304,174.4,174.38,3.38]
[1752696241719,20.0,174.41,174.37,9.51237943]
[1752696241927,3.2,174.39,174.38,3.38]
[1752696242114,5.7305,174.4,174.38,9.51237943]
[1752696242315,8.9305,174.4,174.39,3.38]
[1752696242919,5.7305,174.4,174.38,6.13237943]
[1752696243317,8.9307,174.39,174.38,6.13237943]
[1752696243624,3.2,174.39,174.38,9.51237943]
[1752696245012,23.2,174.41,174.38,6.13237943]
[1752696245223,20.0,174.41,174.4,9.51237943]
[1752696245917,20.0,174.41,174.4,3.38]
[1752696246117,20.0,174.41,174.4,9.51237943]
[1752696247023,25.73,174.41,174.4,7.51778271]
[1752696247417,20.0,174.41,174.4,7.51778271]
[1752696247618,23.2,174.41,174.4,3.38]
[1752696247823,23.2,174.41,174.4,7.51778271]
[1752696248025,28.93,174.41,174.4,7.51778271]
[1752696249025,23.2,174.41,174.4,7.51778271]
[1752696249324,8.9303,174.4,174.39,0.03906078]
[1752696251426,8.9303,174.4,174.39,4.17684349]
[1752696251628,8.9303,174.4,174.39,0.03906078]
[1752696253517,8.9303,174.4,174.39,6.078e-05]
[1752696254430,18.47043135,174.4,174.39,6.078e-05]
[1752696255024,18.47043135,174.4,174.33,3.38]
[1752696255025,5.7323,174.34,174.33,4.13778271]
[1752696255325,24.1745031,174.41,174.33,4.13778271]
[1752696255326,6.37993637,174.36,174.33,4.13778271]
[1752696255634,3.2,174.34,174.33,7.51778271]
[1752696256129,8.9323,174.34,174.33,7.51778271]
[1752696256430,3.2,174.32,174.31,7.51778271]
[1752696256633,9.58873942,174.32,174.31,7.51778271]
[1752696256930,9.58873942,174.32,174.31,4.13778271]
[1752696257132,3.2,174.32,174.31,4.13778271]
[1752696257629,15.27343135,174.32,174.28,430.954]
[1752696257832,15.27343135,174.32,174.31,4.13778271]
[1752696258333,18.61343135,174.32,174.31,7.36778271]
[1752696258725,9.0735,174.31,174.3,4.13778271]
[1752696258935,9.0735,174.31,174.3,7.36778271]
[1752696259936,5.7331,174.32,174.3,7.36778271]
[1752696260129,15.33027525,174.32,174.31,4.13778271]
[1752696260331,5.7331,174.32,174.31,4.13778271]
[1752696260524,5.7331,174.32,174.31,7.36778271]
[1752696261235,9.0731,174.32,174.31,7.36778271]
[1752696261531,5.7331,174.32,174.31,7.36778271]
[1752696262132,9.0731,174.32,174.31,7.36778271]
[1752696262521,5.7331,174.32,174.31,7.36778271]
[1752696263531,5.7327,174.33,174.32,3.23]